lending/lending_fUSD_20250516
["ID","MTS","AMOUNT","RATE_DAILY","PERIOD"]
[361273759,1747411847172,-400.0,0.00016438,2]
[361273760,1747411847183,-151.0,0.00016438,2]
[361273761,1747411847195,-151.0,0.00016438,2]
[361273762,1747411847207,-400.0,0.00016438,2]
[361273763,1747411847219,-693.83,0.00016438,2]
[361273764,1747411847230,-880.96,0.00016438,2]
[361273765,1747411847242,-400.0,0.00016438,2]
[361273766,1747411847254,-586.65,0.00016438,2]
[361273767,1747411847265,-400.0,0.00016438,2]
[361273768,1747411847279,-400.0,0.00016438,2]
[361273769,1747411847290,-1076.37,0.00016438,2]
[361273770,1747411847302,-400.0,0.00016438,2]
[361273771,1747411847314,-400.0,0.00016438,2]
[361273772,1747411847326,-588.32,0.00016438,2]
[361273773,1747411847338,-551.48,0.00016438,2]
[361273774,1747411847350,-400.0,0.00016438,2]
[361273775,1747411847361,-698.69,0.00016438,2]
[361273776,1747411847373,-1942.43,0.00016438,2]
[361273777,1747411847385,-703.2,0.00016438,2]
[361273778,1747411847396,-411.07,0.00016438,2]
[361273779,1747411847408,-400.0,0.00016438,2]
[361273780,1747411847420,-400.0,0.00016438,2]
[361273781,1747411847431,-1405.63,0.00016438,2]
[361273782,1747411847443,-400.0,0.00016438,2]
[361273783,1747411847455,-400.0,0.00016438,2]
[361273784,1747411847467,-400.0,0.00016438,2]
[361273785,1747411847479,-244.29461855,0.00016438,2]
[361273786,1747411847490,-400.0,0.00016438,2]
[361273787,1747411847502,-400.0,0.00016438,2]
[361273788,1747411847514,-151.0,0.00016438,2]
[361273789,1747411847526,-151.0,0.00016438,2]
[361273790,1747411847537,-151.0,0.00016438,2]
[361273791,1747411847548,-390.61340108,0.00016438,2]
[361273792,1747411847561,-400.0,0.00016438,2]
[361273793,1747411847573,-1136.39,0.00016438,2]
[361273794,1747411847585,-400.0,0.00016438,2]
[361273795,1747411847598,-493.1,0.00016438,2]
[361273796,1747411847610,-917.87,0.00016438,2]
[361273797,1747411847621,-400.0,0.00016438,2]
[361273798,1747411847633,-853.08,0.00016438,2]
[361273799,1747411847644,-151.22292362,0.00016438,2]
[361273800,1747411847655,-400.0,0.00016438,2]
[361273801,1747411847666,-389.87200397,0.00016438,2]
[361273802,1747411847678,-400.0,0.00016438,2]
[361273803,1747411847690,-400.0,0.00016438,2]
[361273804,1747411847702,-1279.41,0.00016438,2]
[361273805,1747411847714,-442.07,0.00016438,2]
[361273806,1747411847727,-710.54,0.00016438,2]
[361273807,1747411847739,-400.0,0.00016438,2]
[361273808,1747411847751,-400.0,0.00016438,2]
[361273809,1747411847762,-400.0,0.00016438,2]
[361273810,1747411847774,-1731.99,0.00016438,2]
[361273811,1747411847789,-400.0,0.00016438,2]
[361273812,1747411847801,-400.0,0.00016438,2]
[361273813,1747411847812,-662.0,0.00016438,2]
[361273814,1747411847823,-400.0,0.00016438,2]
[361273815,1747411847835,-400.0,0.00016438,2]
[361273816,1747411847846,-554.15,0.00016438,2]
[361273817,1747411847857,-400.0,0.00016438,2]
[361273818,1747411847871,-460.04,0.00016438,2]
[361273819,1747411847882,-563.64,0.00016438,2]
[361273820,1747411847894,-1290.87,0.00016438,2]
[361273821,1747411847905,-400.0,0.00016438,2]
[361273822,1747411847917,-487.83129955,0.00016438,2]
[361273823,1747411847929,-400.0,0.00016438,2]
[361273824,1747411847940,-400.0,0.00016438,2]
[361273825,1747411847952,-513.68,0.00016438,2]
[361273826,1747411847964,-484.94,0.00016438,2]
[361273827,1747411847977,-400.0,0.00016438,2]
[361273828,1747411847988,-264.90363188,0.00016438,2]
[361273829,1747411847999,-400.0,0.00016438,2]
[361273830,1747411848011,-400.0,0.00016438,2]
[361273831,1747411848022,-406.44,0.00016438,2]
[361273832,1747411848036,-677.2,0.00016438,2]
[361273833,1747411848048,-400.0,0.00016438,2]
[361273834,1747411848059,-400.0,0.00016438,2]
[361273835,1747411848072,-405.3,0.00016438,2]
[361273836,1747411848083,-400.0,0.00016438,2]
[361273837,1747411848095,-2105.41,0.00016438,2]
[361273838,1747411848108,-737.63,0.00016438,2]
[361273839,1747411848121,-851.62,0.00016438,2]
[361273840,1747411848133,-400.0,0.00016438,2]
[361273841,1747411848144,-2259.28,0.00016438,2]
[361273842,1747411848158,-436.648818,0.00016438,2]
[361273843,1747411848171,-436.648818,0.00016438,2]
[361273844,1747411848183,-400.0,0.00016438,2]
[361273845,1747411848195,-436.648818,0.00016438,2]
[361273846,1747411848207,-436.648818,0.00016438,2]
[361273847,1747411848219,-400.0,0.00016438,2]
[361273848,1747411848232,-814.59,0.00016438,2]
[361273849,1747411848243,-400.0,0.00016438,2]
[361273850,1747411848255,-400.0,0.00016438,2]
[361273851,1747411848267,-436.648818,0.00016438,2]
[361273852,1747411848279,-400.0,0.00016438,2]
[361273853,1747411848291,-436.648818,0.00016438,2]
[361273854,1747411848303,-436.648818,0.00016438,2]
[361273855,1747411848315,-400.0,0.00016438,2]
[361273856,1747411848327,-436.648818,0.00016438,2]
[361273857,1747411848339,-1823.94,0.00016438,2]
[361273858,1747411848353,-383.5501376,0.00016438,2]
[361273859,1747411848365,-612.24,0.00016438,2]
[361273860,1747411848377,-400.0,0.00016438,2]
[361273861,1747411848388,-400.0,0.00016438,2]
[361273862,1747411848400,-407.42,0.00016438,2]
[361273863,1747411848412,-1524.01,0.00016438,2]
[361273864,1747411848423,-400.0,0.00016438,2]
[361273865,1747411848435,-400.0,0.00016438,2]
[361273866,1747411848446,-400.0,0.00016438,2]
[361273867,1747411848458,-1176.98,0.00016438,2]
[361273868,1747411848470,-568.39,0.00016438,2]
[361273869,1747411848481,-888.17,0.00016438,2]
[361273870,1747411848493,-400.0,0.00016438,2]
[361273871,1747411848504,-151.0,0.00016438,2]
[361273872,1747411848516,-400.0,0.00016438,2]
[361273873,1747411848528,-151.0,0.00016438,2]
[361273874,1747411848539,-400.0,0.00016438,2]
[361273875,1747411848551,-151.0,0.00016438,2]
[361273876,1747411848563,-151.0,0.00016438,2]
[361273877,1747411848575,-400.0,0.00016438,2]
[361273878,1747411848587,-1131.38,0.00016438,2]
[361273879,1747411848598,-407.42,0.00016438,2]
[361273880,1747411848610,-476.22,0.00016438,2]
[361273881,1747411848623,-400.0,0.00016438,2]
[361273882,1747411848635,-421.34,0.00016438,2]
[361273883,1747411848646,-400.0,0.00016438,2]
[361273884,1747411848658,-400.0,0.00016438,2]
[361273885,1747411848670,-915.04,0.00016438,2]
[361273886,1747411848682,-400.0,0.00016438,2]
[361273887,1747411848694,-400.0,0.00016438,2]
[361273888,1747411848706,-1023.74,0.00016438,2]
[361273889,1747411848718,-400.0,0.00016438,2]
[361273890,1747411848729,-1806.92,0.00016438,2]
[361273891,1747411848740,-400.0,0.00016438,2]
[361273892,1747411848752,-426.52,0.00016438,2]
[361273893,1747411848764,-400.0,0.00016438,2]
[361273894,1747411848776,-1076.49,0.00016438,2]
[361273895,1747411848791,-400.0,0.00016438,2]
[361273896,1747411848803,-400.0,0.00016438,2]
[361273897,1747411848815,-400.0,0.00016438,2]
[361273898,1747411848828,-400.0,0.00016438,2]
[361273899,1747411848840,-400.0,0.00016438,2]
[361273900,1747411848852,-400.0,0.00016438,2]
[361273901,1747411848864,-400.0,0.00016438,2]
[361273902,1747411848875,-400.0,0.00016438,2]
[361273903,1747411848887,-400.0,0.00016438,2]
[361273904,1747411848898,-400.0,0.00016438,2]
[361273905,1747411848909,-400.0,0.00016438,2]
[361273906,1747411848920,-400.0,0.00016438,2]
[361273907,1747411848932,-400.0,0.00016438,2]
[361273908,1747411848943,-400.0,0.00016438,2]
[361273909,1747411848955,-446.21270066,0.00016438,2]
[361273910,1747411848966,-1020.46,0.00016438,2]
[361273911,1747411848977,-400.0,0.00016438,2]
[361273912,1747411848988,-525.72,0.00016438,2]
[361273913,1747411849001,-400.0,0.00016438,2]
[361273914,1747411849012,-407.9,0.00016438,2]
[361273915,1747411849024,-400.0,0.00016438,2]
[361273916,1747411849037,-510.03,0.00016438,2]
[361273917,1747411849048,-465.43,0.00016438,2]
[361273918,1747411849060,-553.76,0.00016438,2]
[361273919,1747411849071,-400.0,0.00016438,2]
[361273920,1747411849083,-908.33,0.00016438,2]
[361273921,1747411849095,-575.83,0.00016438,2]
[361273922,1747411849107,-400.0,0.00016438,2]
[361273923,1747411849118,-400.0,0.00016438,2]
[361273924,1747411849130,-400.0,0.00016438,2]
[361273925,1747411849142,-586.65,0.00016438,2]
[361273926,1747411849153,-553.96,0.00016438,2]
[361273927,1747411849165,-400.0,0.00016438,2]
[361273928,1747411849177,-400.0,0.00016438,2]
[361273929,1747411849189,-400.0,0.00016438,2]
[361273930,1747411849201,-400.0,0.00016438,2]
[361273931,1747411849213,-515.44,0.00016438,2]
[361273932,1747411849226,-414.81352552,0.00016438,2]
[361273933,1747411849238,-639.94,0.00016438,2]
[361273934,1747411849250,-847.22,0.00016438,2]
[361273935,1747411849262,-400.0,0.00016438,2]
[361273936,1747411849274,-400.0,0.00016438,2]
[361273937,1747411849288,-400.0,0.00016438,2]
[361273938,1747411849300,-403.55,0.00016438,2]
[361273939,1747411849311,-1288.94,0.00016438,2]
[361273940,1747411849323,-1589.93,0.00016438,2]
[361273941,1747411849335,-400.0,0.00016438,2]
[361273942,1747411849348,-400.0,0.00016438,2]
[361273943,1747411849360,-1564.21,0.00016438,2]
[361273944,1747411849372,-400.0,0.00016438,2]
[361273945,1747411849384,-400.0,0.00016438,2]
[361273946,1747411850119,-400.0,0.00016438,2]
[361273947,1747411850152,-404.34587955,0.00016438,2]
[361273948,1747411850173,-151.0,0.00016438,2]
[361273949,1747411850193,-1471.78,0.00016438,2]
[361273950,1747411850211,-151.0,0.00016438,2]
[361273951,1747411850220,-151.0,0.00016438,2]
[361273952,1747411850230,-690.72,0.00016438,2]
[361273953,1747411850240,-151.0,0.00016438,2]
[361273954,1747411850250,-2298.49,0.00016438,2]
[361273955,1747411850259,-4007.27,0.00016438,2]
[361273956,1747411850269,-1713.58,0.00016438,2]
[361273957,1747411850281,-400.0,0.00016438,2]
[361273958,1747411850291,-151.0,0.00016438,2]
[361273959,1747411850301,-400.0,0.00016438,2]
[361273960,1747411850311,-151.0,0.00016438,2]
[361273961,1747411850321,-879.0,0.00016438,2]
[361273962,1747411850331,-151.0,0.00016438,2]
[361273963,1747411850341,-151.0,0.00016438,2]
[361273964,1747411850351,-1000.0,0.00016438,2]
[361273965,1747411850361,-400.0,0.00016438,2]
[361273966,1747411850371,-1379.97,0.00016438,2]
[361273967,1747411850380,-559.56,0.00016438,2]
[361273968,1747411850390,-594.08,0.00016438,2]
[361273969,1747411850400,-500.0,0.00016438,2]
[361273970,1747411850410,-500.0,0.00016438,2]
[361273971,1747411850419,-400.0,0.00016438,2]
[361273972,1747411850429,-401.63203726,0.00016438,2]
[361273973,1747411850439,-400.0,0.00016438,2]
[361273974,1747411850448,-400.0,0.00016438,2]
[361273975,1747411850458,-400.0,0.00016438,2]
[361273976,1747411850468,-400.0,0.00016438,2]
[361273977,1747411850478,-3776.66,0.00016438,2]
[361273978,1747411850488,-400.0,0.00016438,2]
[361273979,1747411850497,-400.0,0.00016438,2]
[361273980,1747411850507,-4974.24,0.00016438,2]
[361273981,1747411850516,-590.85,0.00016438,2]
[361273982,1747411850525,-488.43,0.00016438,2]
[361273983,1747411850537,-400.0,0.00016438,2]
[361273984,1747411850547,-641.18,0.00016438,2]
[361273985,1747411850557,-432.99,0.00016438,2]
[361273986,1747411850569,-817.0,0.00016438,2]
[361273987,1747411850579,-505.62,0.00016438,2]
[361273988,1747411850588,-478.6,0.00016438,2]
[361273989,1747411850598,-807.92,0.00016438,2]
[361273990,1747411850608,-684.99,0.00016438,2]
[361273991,1747411850617,-1414.51,0.00016438,2]
[361273992,1747411850627,-2811.95,0.00016438,2]
[361273993,1747411850637,-400.0,0.00016438,2]
[361273994,1747411850646,-590.01,0.00016438,2]
[361273995,1747411850655,-617.04,0.00016438,2]
[361273996,1747411850665,-400.0,0.00016438,2]
[361273997,1747411850674,-553.99,0.00016438,2]
[361273998,1747411850684,-400.0,0.00016438,2]
[361273999,1747411850693,-3136.34,0.00016438,2]
[361274000,1747411850702,-408.06,0.00016438,2]
[361274001,1747411850712,-539.1,0.00016438,2]
[361274002,1747411850722,-32220.27245764,0.00016438,2]
[361274003,1747411851261,-292.15574658,0.00016438,2]
[361274004,1747411851274,-1631.64817584,0.00016438,2]
[361274005,1747411851288,-5904.02095429,0.00016438,2]
[361274006,1747411851827,-2686.41,0.00016438,2]
[361274007,1747411851838,-4174.95475469,0.00016438,2]
[361274008,1747411851850,-89776.98687236,0.00016438,2]
[361274009,1747411852012,-5175.8310386,0.00016438,2]
[361274010,1747411852023,-955.62,0.00016438,2]
[361274011,1747411852033,-151.0,0.00016438,2]
[361274012,1747411852043,-733.37,0.00016438,2]
[361274013,1747411852053,-151.0,0.00016438,2]
[361274014,1747411852062,-637.98,0.00016438,2]
[361274015,1747411852072,-151.0,0.00016438,2]
[361274016,1747411852081,-151.0,0.00016438,2]
[361274017,1747411852092,-1156.04,0.00016438,2]
[361274018,1747411852102,-478.45,0.00016438,2]
[361274019,1747411852114,-552.39,0.00016438,2]
[361274020,1747411852126,-618.16,0.00016438,2]
[361274021,1747411852135,-400.0,0.00016438,2]
[361274022,1747411852146,-400.0,0.00016438,2]
[361274023,1747411852155,-556.46,0.00016438,2]
[361274024,1747411852165,-400.0,0.00016438,2]
[361274025,1747411852175,-400.0,0.00016438,2]
[361274026,1747411852184,-400.0,0.00016438,2]
[361274027,1747411852195,-714.53,0.00016438,2]
[361274028,1747411852205,-915.28,0.00016438,2]
[361274029,1747411852291,-736.11,0.00016438,2]
[361274030,1747411852302,-678.27,0.00016438,2]
[361274031,1747411852311,-400.0,0.00016438,2]
[361274032,1747411852321,-400.0,0.00016438,2]
[361274033,1747411852331,-564.57,0.00016438,2]
[361274034,1747411852340,-678.27,0.00016438,2]
[361274035,1747411852350,-678.27,0.00016438,2]
[361274036,1747411852360,-678.27,0.00016438,2]
[361274037,1747411852370,-678.27,0.00016438,2]
[361274038,1747411852379,-10357.27,0.00016438,2]
[361274039,1747411852388,-400.0,0.00016438,2]
[361274040,1747411852398,-678.27,0.00016438,2]
[361274041,1747411852408,-678.27,0.00016438,2]
[361274042,1747411852418,-928.03,0.00016438,2]
[361274043,1747411852427,-400.0,0.00016438,2]
[361274044,1747411852436,-151.0,0.00016438,2]
[361274045,1747411852446,-400.0,0.00016438,2]
[361274046,1747411852456,-1125.59,0.00016438,2]
[361274047,1747411852465,-151.0,0.00016438,2]
[361274048,1747411852475,-151.0,0.00016438,2]
[361274049,1747411852484,-1030.59,0.00016438,2]
[361274050,1747411852494,-151.0,0.00016438,2]
[361274051,1747411852504,-400.0,0.00016438,2]
[361274052,1747411852514,-1477.45,0.00016438,2]
[361274053,1747411852525,-3003.92,0.00016438,2]
[361274054,1747411852535,-447.53,0.00016438,2]
[361274055,1747411852545,-400.0,0.00016438,2]
[361274056,1747411852554,-1512.69,0.00016438,2]
[361274057,1747411852564,-1310.51,0.00016438,2]
[361274058,1747411852573,-2021.38,0.00016438,2]
[361274059,1747411852581,-400.0,0.00016438,2]
[361274060,1747411852591,-400.0,0.00016438,2]
[361274061,1747411852600,-480.42,0.00016438,2]
[361274062,1747411852609,-400.0,0.00016438,2]
[361274063,1747411852619,-966.42,0.00016438,2]
[361274064,1747411852628,-400.588147,0.00016438,2]
[361274065,1747411852638,-400.0,0.00016438,2]
[361274066,1747411852647,-1371.68,0.00016438,2]
[361274067,1747411852656,-606.92,0.00016438,2]
[361274068,1747411852665,-511.32,0.00016438,2]
[361274069,1747411852674,-3852.23,0.00016438,2]
[361274070,1747411852684,-400.0,0.00016438,2]
[361274071,1747411852693,-1683.72,0.00016438,2]
[361274072,1747411852703,-420.23,0.00016438,2]
[361274073,1747411852712,-14154.87,0.00016438,2]
[361274074,1747411852722,-400.0,0.00016438,2]
[361274075,1747411852731,-1613.73,0.00016438,2]
[361274076,1747411852741,-778.85,0.00016438,2]
[361274077,1747411852750,-467.67270065,0.00016438,2]
[361274078,1747411852759,-2889.11,0.00016438,2]
[361274079,1747411852768,-2409.87,0.00016438,2]
[361274080,1747411852778,-477.74,0.00016438,2]
[361274081,1747411852791,-400.0,0.00016438,2]
[361274082,1747411852801,-598.5,0.00016438,2]
[361274083,1747411852810,-1318.48,0.00016438,2]
[361274084,1747411852820,-682.28,0.00016438,2]
[361274085,1747411852831,-151.0,0.00016438,2]
[361274086,1747411852840,-400.0,0.00016438,2]
[361274087,1747411852850,-151.0,0.00016438,2]
[361274088,1747411852860,-980.02,0.00016438,2]
[361274089,1747411852870,-400.0,0.00016438,2]
[361274090,1747411852879,-1582.28,0.00016438,2]
[361274091,1747411852888,-413.948277,0.00016438,2]
[361274092,1747411852898,-400.0,0.00016438,2]
[361274093,1747411852907,-400.0,0.00016438,2]
[361274094,1747411852917,-413.948277,0.00016438,2]
[361274095,1747411852926,-8577.4080816,0.00016438,2]
[361274096,1747411852941,-4077.2019184,0.00016438,2]
[361274097,1747411852951,-413.948277,0.00016438,2]
[361274098,1747411852962,-1568.91,0.00016438,2]
[361274099,1747411852972,-413.948277,0.00016438,2]
[361274100,1747411852982,-498.69,0.00016438,2]
[361274101,1747411852993,-952.37,0.00016438,2]
[361274102,1747411853003,-6103.26,0.00016438,2]
[361274103,1747411853012,-400.0,0.00016438,2]
[361274104,1747411853022,-765.24,0.00016438,2]
[361274105,1747411853031,-4694.4827275,0.00016438,2]
[361274106,1747411853044,-997.48,0.00016438,2]
[361274107,1747411853098,-1310.4872725,0.00016438,2]
[361274108,1747411853108,-400.0,0.00016438,2]
[361274109,1747411853117,-511.36466031,0.00016438,2]
[361274110,1747411853127,-400.0,0.00016438,2]
[361274111,1747411853137,-400.0,0.00016438,2]
[361274112,1747411853146,-1678.42,0.00016438,2]
[361274113,1747411853156,-423.47,0.00016438,2]
[361274114,1747411853165,-319.47681052,0.00016438,2]
[361274115,1747411853175,-1048.97,0.00016438,2]
[361274116,1747411853184,-416.74,0.00016438,2]
[361274117,1747411853193,-2599.58,0.00016438,2]
[361274118,1747411853203,-496.18,0.00016438,2]
[361274119,1747411853212,-23645.05,0.00016438,2]
[361274120,1747411853221,-400.0,0.00016438,2]
[361274121,1747411853231,-400.0,0.00016438,2]
[361274122,1747411853240,-400.0,0.00016438,2]
[361274123,1747411853252,-400.0,0.00016438,2]
[361274124,1747411853261,-1820.71,0.00016438,2]
[361274125,1747411853270,-400.0,0.00016438,2]
[361274126,1747411853280,-785.52,0.00016438,2]
[361274127,1747411853291,-400.0,0.00016438,2]
[361274128,1747411853299,-784.71,0.00016438,2]
[361274129,1747411853309,-400.0,0.00016438,2]
[361274130,1747411853318,-1177.64,0.00016438,2]
[361274131,1747411853327,-1153.29,0.00016438,2]
[361274132,1747411853337,-2565.35,0.00016438,2]
[361274133,1747411853346,-400.0,0.00016438,2]
[361274134,1747411853356,-400.0,0.00016438,2]
[361274135,1747411853365,-2859.6,0.00016438,2]
[361274136,1747411853374,-400.0,0.00016438,2]
[361274137,1747411853384,-913.03,0.00016438,2]
[361274138,1747411853393,-196.31174196,0.00016438,2]
[361274139,1747411853402,-3790.37,0.00016438,2]
[361274140,1747411853412,-1653.35,0.00016438,2]
[361274141,1747411853421,-400.0,0.00016438,2]
[361274142,1747411853431,-345.06608791,0.00016438,2]
[361274143,1747411853440,-400.0,0.00016438,2]
[361274144,1747411853449,-504.74,0.00016438,2]
[361274145,1747411853458,-400.0,0.00016438,2]
[361274146,1747411853467,-566.51,0.00016438,2]
[361274147,1747411853477,-451.9129048,0.00016438,2]
[361274148,1747411853486,-832.37,0.00016438,2]
[361274149,1747411853495,-400.0,0.00016438,2]
[361274150,1747411853504,-717.27,0.00016438,2]
[361274151,1747411853513,-1713.08,0.00016438,2]
[361274152,1747411853521,-463.56,0.00016438,2]
[361274153,1747411853531,-400.0,0.00016438,2]
[361274154,1747411853541,-2500.99,0.00016438,2]
[361274155,1747411853550,-400.0,0.00016438,2]
[361274156,1747411853559,-1929.06,0.00016438,2]
[361274157,1747411853568,-4948.16,0.00016438,2]
[361274158,1747411853577,-400.0,0.00016438,2]
[361274159,1747411853586,-400.0,0.00016438,2]
[361274160,1747411853595,-481.26,0.00016438,2]
[361274161,1747411853604,-1508.29,0.00016438,2]
[361274162,1747411853613,-2173.25,0.00016438,2]
[361274163,1747411853622,-1206.66,0.00016438,2]
[361274164,1747411853631,-1053.96,0.00016438,2]
[361274165,1747411853640,-1545.72,0.00016438,2]
[361274166,1747411853649,-2014.07,0.00016438,2]
[361274167,1747411853659,-3401.05,0.00016438,2]
[361274168,1747411853668,-703.19,0.00016438,2]
[361274169,1747411853678,-400.0,0.00016438,2]
[361274170,1747411853687,-855.06,0.00016438,2]
[361274171,1747411853698,-411.91136059,0.00016438,2]
[361274172,1747411853707,-400.0,0.00016438,2]
[361274173,1747411853717,-400.0,0.00016438,2]
[361274174,1747411853726,-151.0,0.00016438,2]
[361274175,1747411853735,-151.0,0.00016438,2]
[361274176,1747411853745,-151.0,0.00016438,2]
[361274177,1747411853754,-151.0,0.00016438,2]
[361274178,1747411853764,-400.0,0.00016438,2]
[361274179,1747411853774,-1684.98,0.00016438,2]
[361274180,1747411853784,-151.0,0.00016438,2]
[361274181,1747411853796,-539.7203996,0.00016438,2]
[361274182,1747411853806,-498.4,0.00016438,2]
[361274183,1747411853815,-4073.02,0.00016438,2]
[361274184,1747411853824,-1299.23,0.00016438,2]
[361274185,1747411853834,-1783.69,0.00016438,2]
[361274186,1747411853844,-1095.32,0.00016438,2]
[361274187,1747411853853,-2440.4,0.00016438,2]
[361274188,1747411853865,-1539.1,0.00016438,2]
[361274189,1747411853875,-620.45,0.00016438,2]
[361274190,1747411853884,-1485.01,0.00016438,2]
[361274191,1747411853893,-756.19,0.00016438,2]
[361274192,1747411853903,-1145.1,0.00016438,2]
[361274193,1747411853912,-224.091858,0.00016438,2]
[361274194,1747411853922,-151.0,0.00016438,2]
[361274195,1747411853931,-400.0,0.00016438,2]
[361274196,1747411853940,-207.13604,0.00016438,2]
[361274197,1747411853950,-297.881614,0.00016438,2]
[361274198,1747411853959,-297.881614,0.00016438,2]
[361274199,1747411853968,-297.881614,0.00016438,2]
[361274200,1747411853978,-297.881614,0.00016438,2]
[361274201,1747411853987,-1144.67,0.00016438,2]
[361274202,1747411853998,-297.881614,0.00016438,2]
[361274203,1747411854007,-151.0,0.00016438,2]
[361274204,1747411854016,-400.0,0.00016438,2]
[361274205,1747411854026,-257.767616,0.00016438,2]
[361274206,1747411854038,-400.0,0.00016438,2]
[361274207,1747411854047,-2000.0,0.00016438,2]
[361274208,1747411854057,-639.99,0.00016438,2]
[361274209,1747411854066,-400.0,0.00016438,2]
[361274210,1747411854076,-297.881614,0.00016438,2]
[361274211,1747411854086,-297.881614,0.00016438,2]
[361274212,1747411854095,-297.881614,0.00016438,2]
[361274213,1747411854104,-151.0,0.00016438,2]
[361274214,1747411854113,-151.0,0.00016438,2]
[361274215,1747411854123,-297.881614,0.00016438,2]
[361274216,1747411854132,-400.0,0.00016438,2]
[361274217,1747411854142,-2618.13,0.00016438,2]
[361274218,1747411854151,-621.96,0.00016438,2]
[361274219,1747411854162,-297.881614,0.00016438,2]
[361274220,1747411854171,-3554.3,0.00016438,2]
[361274221,1747411854180,-400.0,0.00016438,2]
[361274222,1747411854190,-238.57228244,0.00016438,2]
[361274223,1747411854199,-825.08,0.00016438,2]
[361274224,1747411854208,-400.0,0.00016438,2]
[361274225,1747411854218,-2131.46,0.00016438,2]
[361274226,1747411854227,-500.53,0.00016438,2]
[361274227,1747411854236,-1097.5,0.00016438,2]
[361274228,1747411854246,-12618.14,0.00016438,2]
[361274229,1747411854255,-151.0,0.00016438,2]
[361274230,1747411854265,-401.7297543,0.00016438,2]
[361274231,1747411854274,-3462.88,0.00016438,2]
[361274232,1747411854286,-257.0665036,0.00016438,2]
[361274233,1747411854301,-142.9334964,0.00016438,2]
[361274234,1747411854310,-400.0,0.00016438,2]
[361274235,1747411854320,-355.3664436,0.00016438,2]
[361274238,1747411950864,150.0,0.00026914,120]
[361274242,1747412216549,200.0,0.00025,30]
[361274243,1747412253432,271.0,0.00010199,2]
[361274244,1747412310769,150.0,0.00025915,120]
[361274246,1747412889596,298.30352734,0.00016438,30]
[361274260,1747413031470,-507.52,0.00013418,2]
[361274262,1747413031481,-877.5,0.00013699,2]
[361274264,1747413031490,-159.82055855,0.000139,2]
[361274266,1747413031499,-151.4,0.0001399,2]
[361274268,1747413031510,-151.4,0.0001399,2]
[361274269,1747413031519,-151.4,0.0001399,2]
[361274270,1747413031530,-305.73,0.0001399,2]
[361274271,1747413031539,-305.73,0.0001399,2]
[361274272,1747413031549,-300.0,0.00013997,2]
[361274273,1747413031558,-300.0,0.00013998,2]
[361274274,1747413031569,-1200.0,0.00013998,2]
[361274275,1747413031579,-150.0,0.00013998,2]
[361274276,1747413031588,-300.0,0.00013998,2]
[361274277,1747413031598,-179.30745844,0.00013999,2]
[361274278,1747413031607,-183.59662396,0.00013999,2]
[361274279,1747413031616,-208.67410497,0.00013999,2]
[361274280,1747413031626,-199.53797842,0.00013999,2]
[361274281,1747413031636,-500.0,0.00013999,2]